bitfinex/quotes_ETHUSD_20230113
["timestamp","ask_amount","ask_price","bid_price","bid_amount"]
[1673588443399,1.09661359,1408.7,1408.6,12.32009779]
[1673588445080,0.03670622,1408.7,1408.6,12.32009779]
[1673588447556,0.03670622,1408.7,1408.6,14.32009779]
[1673588447774,0.03670622,1408.7,1408.6,21.41933779]
[1673588448563,0.03670622,1408.7,1408.6,19.41933779]
[1673588449024,6.87660767,1408.7,1408.5,7.16539]
[1673588449234,6.87660767,1408.7,1408.5,7.09939]
[1673588449235,6.93832938,1408.7,1408.5,7.09939]
[1673588449476,0.69383294,1408.6,1408.5,7.09939]
[1673588450053,0.92383294,1408.6,1408.5,7.09939]
[1673588450930,1.98374031,1408.6,1408.5,7.09939]
[1673588451179,3.74486127,1408.6,1408.5,14.19914]
[1673588451550,3.74486127,1408.6,1408.5,7.09939]
[1673588451756,3.74486127,1408.6,1408.0,32.42719491]
[1673588452001,0.23,1408.5,1408.1,20.84764009]
[1673588452217,0.23,1408.5,1408.2,3.503]
[1673588452421,0.23,1408.5,1408.3,21.30225]
[1673588456812,1.28990737,1408.5,1408.3,6.0439964]
[1673588457063,4.07843992,1408.5,1408.3,6.0439964]
[1673588459166,4.07843992,1408.5,1408.2,21.36914]
[1673588459377,4.07843992,1408.5,1408.2,21.30314]
[1673588459589,0.40784399,1408.4,1408.2,14.20201]
[1673588460438,4.07843992,1408.5,1408.2,14.20201]
[1673588460590,4.07843992,1408.5,1408.2,21.30327]
[1673588461064,4.07843992,1408.5,1408.2,7.101]
[1673588461275,4.07843992,1408.5,1408.2,21.30352]
[1673588462474,3.01853255,1408.5,1408.2,21.30352]
[1673588463129,0.30185326,1408.4,1408.2,7.101]
[1673588463323,0.23,1408.3,1408.2,7.101]
[1673588463756,4.51933272,1408.3,1408.1,14.26884]
[1673588463974,1.143,1408.2,1408.0,14.27017]
[1673588464174,1.59493327,1408.2,1407.9,14.27107]
[1673588464391,1.59493327,1408.2,1407.9,14.20507]
[1673588464807,5.20126599,1408.2,1407.9,7.1025]
[1673588465042,5.2629877,1408.2,1407.9,7.1025]
[1673588465322,0.52629877,1408.1,1407.9,7.1025]
[1673588467049,0.52629877,1408.1,1407.9,7.0525]
[1673588468736,0.52629877,1408.1,1407.9,21.25804]
[1673588468978,9.91982171,1408.2,1408.0,2.0]
[1673588469185,0.06172171,1408.2,1408.1,7.10176]
[1673588469333,13.41752171,1408.3,1408.1,21.30528]
[1673588471424,19.2785166,1408.3,1408.1,7.10176]
[1673588471639,0.23,1408.2,1408.1,7.10176]
[1673588474528,0.23,1408.2,1408.0,21.37208]
[1673588474703,0.23,1408.2,1408.0,21.30608]
[1673588475571,0.23,1408.2,1408.0,14.20402]
[1673588476577,0.23,1408.2,1407.9,14.22091]
[1673588476578,5.78718438,1408.2,1407.9,14.22091]
[1673588476826,5.84890609,1408.2,1407.9,21.25768]
[1673588478725,12.95017609,1408.2,1407.9,21.25768]
[1673588480167,5.84890609,1408.2,1407.9,21.25768]
[1673588480624,3.89805443,1408.2,1407.9,21.25768]
[1673588480954,0.23,1408.2,1407.9,21.25768]
[1673588481100,0.23,1408.2,1408.0,2.0]
[1673588481524,0.23,1408.2,1408.1,7.10176]
[1673588482606,13.41752171,1408.3,1408.1,14.20352]
[1673588484894,13.41752171,1408.3,1408.0,7.16796]
[1673588485250,16.38222188,1408.3,1408.0,14.20394]
[1673588485447,0.23,1408.2,1408.0,14.20394]
[1673588485654,0.23,1408.2,1408.0,7.10196]
[1673588486457,3.83633272,1408.2,1407.9,14.27089]
[1673588486705,0.38363327,1408.1,1407.9,7.10241]
[1673588487404,0.38363327,1408.1,1407.8,14.81053]
[1673588487405,0.23,1408.0,1407.8,14.81053]
[1673588487627,0.23,1408.0,1407.8,7.10303]
[1673588487854,1.29478591,1408.0,1407.8,7.10303]
[1673588488084,0.23,1408.0,1407.8,7.10303]
[1673588488453,0.23,1408.0,1407.8,14.20631]
[1673588490275,0.23,1408.0,1407.8,15.26846334]
[1673588492042,0.23,1408.0,1407.8,22.37174334]
[1673588492043,0.22628982,1408.0,1407.8,22.37174334]
[1673588492299,8.99242171,1408.2,1407.8,25.48098952]
[1673588492582,15.23603736,1408.2,1407.8,25.48098952]
[1673588493199,15.23603736,1408.2,1407.9,3.06215334]
[1673588493406,12.59875443,1408.2,1407.9,3.06215334]
[1673588493622,12.59875443,1408.2,1408.0,14.20454]
[1673588494258,3.66805443,1408.2,1408.0,14.20454]
[1673588494460,16.38222188,1408.3,1408.0,14.20454]
[1673588494672,0.23,1408.2,1408.0,14.20454]
[1673588494913,0.23,1408.2,1408.0,16.80738195]
[1673588495082,0.23,1408.2,1408.0,17.86953529]
[1673588495299,13.41752171,1408.3,1408.0,23.90965195]
[1673588495553,13.41752171,1408.3,1408.1,9.10159]
[1673588495916,13.41752171,1408.3,1408.1,7.10159]
[1673588497620,14.47742908,1408.3,1408.1,7.10159]
[1673588497810,13.41752171,1408.3,1408.1,7.10159]
[1673588498264,14.47742908,1408.3,1408.1,7.10159]
[1673588498476,14.47442908,1408.3,1408.1,7.10359]
[1673588498692,14.47742908,1408.3,1408.1,7.10159]
[1673588499227,13.41752171,1408.3,1408.1,7.10159]
[1673588499665,14.47742908,1408.3,1408.1,7.10159]
[1673588499805,13.41752171,1408.3,1408.1,7.10159]
[1673588500013,21.62243459,1408.3,1408.0,15.33252334]
[1673588500262,0.23,1408.2,1407.9,24.02897952]
[1673588500473,0.23,1408.2,1407.9,23.96297952]
[1673588504586,1.28990737,1408.2,1407.9,22.36973334]
[1673588504799,3.05150107,1408.2,1407.9,22.36973334]
[1673588505109,1.28990737,1408.2,1407.9,22.36973334]
[1673588506844,1.28990737,1408.2,1407.9,23.96297952]
[1673588510710,1.28990737,1408.2,1407.9,22.36973334]
[1673588511028,4.60809492,1408.2,1407.9,22.36973334]
[1673588513547,4.60443125,1408.2,1407.9,22.36973334]
[1673588516551,3.54452388,1408.2,1407.9,23.96297952]
[1673588516758,0.22633633,1408.2,1407.9,23.96297952]
[1673588516950,1.2862437,1408.2,1407.9,23.96297952]
[1673588518270,1.2862437,1408.2,1407.9,22.36973334]
[1673588518481,1.2862437,1408.2,1407.9,23.96297952]
[1673588519208,3.60633272,1408.1,1407.9,22.36973334]
[1673588521265,4.56600136,1408.1,1407.9,22.36973334]
[1673588521471,4.56600136,1408.1,1407.9,8.16463334]
[1673588523096,4.56600136,1408.1,1407.9,7.10248]
[1673588524757,4.56600136,1408.1,1407.9,14.20525]
[1673588524970,3.60633272,1408.1,1407.9,14.20525]
[1673588525310,3.60633272,1408.1,1407.9,15.26740334]
[1673588525558,14.48685585,1408.2,1407.9,15.26740334]
[1673588525828,18.09318857,1408.2,1407.9,15.26740334]
[1673588527922,18.09318857,1408.2,1407.9,22.37017334]
[1673588528438,16.5069864,1408.2,1407.9,22.37017334]
[1673588528864,16.50698862,1408.2,1407.9,22.37017334]
[1673588529104,16.50698224,1408.2,1407.9,22.37017334]
[1673588530195,20.92732858,1408.2,1407.9,22.37017334]
[1673588531403,17.32099586,1408.2,1407.9,22.37017334]
[1673588531569,12.90064952,1408.2,1407.9,22.37017334]
[1673588531779,10.25826541,1408.2,1407.9,22.37017334]
[1673588532646,10.25826541,1408.2,1407.9,23.96341952]
[1673588534181,10.25826541,1408.2,1407.9,22.37017334]
[1673588535482,10.25826541,1408.2,1407.9,23.96341952]
[1673588536092,9.19835804,1408.2,1408.0,1.06215334]
[1673588536306,9.19835804,1408.2,1408.1,7.10176]
[1673588536551,0.28805804,1408.2,1408.1,7.10176]
[1673588536887,0.22633633,1408.2,1408.1,7.10176]
[1673588540599,14.47742908,1408.3,1408.1,22.36743334]
[1673588542548,14.47742908,1408.3,1408.1,21.30528]
[1673588544542,14.47742908,1408.3,1408.1,14.20352]
[1673588547451,14.47742908,1408.3,1408.1,21.30528]
[1673588549890,13.41752171,1408.3,1408.1,21.30528]
[1673588550219,13.41752171,1408.3,1408.1,22.36743334]
[1673588551039,13.41752171,1408.3,1408.1,21.30528]
[1673588553281,13.41752171,1408.3,1408.1,22.36743334]
[1673588553453,13.41752171,1408.3,1408.1,21.30528]
[1673588554652,14.47742908,1408.3,1408.1,21.30528]
[1673588555331,13.41752171,1408.3,1408.1,21.30528]
[1673588555970,13.41752171,1408.3,1408.1,22.36743334]
[1673588556235,13.41379997,1408.3,1408.1,25.48029229]
[1673588560844,0.06172171,1408.3,1408.1,25.48029229]
[1673588561060,9.25572171,1408.4,1408.2,2.0]
[1673588561233,9.25572171,1408.4,1408.3,21.30225]
[1673588561441,0.06172171,1408.4,1408.3,20.2454828]
[1673588561651,15.89093125,1408.5,1408.3,20.2454828]
[1673588561858,17.843218,1408.5,1408.3,20.2454828]
[1673588562112,15.89093125,1408.5,1408.3,20.2454828]
[1673588562432,14.30472908,1408.5,1408.3,20.2454828]
[1673588562596,15.89093125,1408.5,1408.3,20.2454828]
[1673588562802,14.30472908,1408.5,1408.3,20.2454828]
[1673588563648,15.89093125,1408.5,1408.3,20.2454828]
[1673588564432,14.30472908,1408.5,1408.3,20.2454828]
[1673588568391,14.30472908,1408.5,1408.3,20.2304828]
[1673588571433,14.30472908,1408.5,1408.3,23.27645741]
[1673588572723,1.12162908,1408.5,1408.4,2.0]
[1673588572889,1.05990737,1408.5,1408.4,21.30075]
[1673588574359,23.61582388,1408.6,1408.4,21.30075]
[1673588574360,1.12162908,1408.6,1408.4,21.30075]
[1673588574684,6.37985849,1408.7,1408.5,2.130075]
[1673588574685,1.1583353,1408.7,1408.5,2.130075]
[1673588574899,1.09661359,1408.7,1408.6,21.29772]
[1673588575127,2.85756618,1408.7,1408.6,21.29772]
[1673588575303,0.03670622,1408.7,1408.6,21.29772]
[1673588577878,0.03670622,1408.7,1408.6,14.19848]
[1673588578471,0.03670622,1408.7,1408.6,21.29772]
[1673588579166,0.03670622,1408.7,1408.6,22.65624365]
[1673588580930,0.03670622,1408.7,1408.6,24.17324365]
[1673588582207,0.03670622,1408.7,1408.6,24.22324365]
[1673588584416,0.03670622,1408.7,1408.6,24.17324365]
[1673588585244,0.03670622,1408.7,1408.6,25.68224365]
[1673588585433,0.03670622,1408.7,1408.6,29.28857637]
[1673588585640,0.03670622,1408.7,1408.6,33.70959719]
[1673588586484,0.03670622,1408.7,1408.6,29.28857637]
[1673588586936,0.03670622,1408.7,1408.6,33.70959719]
[1673588587471,0.03670622,1408.7,1408.6,36.70959719]
[1673588589987,0.03681439,1409.0,1408.7,2.0]
[1673588590199,0.03681439,1409.0,1408.9,1.506]
[1673588590407,0.03681439,1409.0,1408.9,22.79919]
[1673588596195,0.03681439,1409.0,1408.9,22.79589346]
[1673588598090,0.03681439,1409.0,1408.9,30.82150255]
[1673588598305,0.03681439,1409.0,1408.9,27.91922618]
[1673588598529,0.03681439,1409.0,1408.9,38.18360497]
[1673588599584,0.03681439,1409.0,1408.9,33.76520079]
[1673588600834,0.03681439,1409.0,1408.9,38.18622161]
[1673588602649,0.03681439,1409.0,1408.9,33.76520079]
[1673588602838,0.03681439,1409.0,1408.9,38.18622161]
[1673588603341,0.03681439,1409.0,1408.9,33.76520079]
[1673588603756,0.03681439,1409.0,1408.9,25.79589346]
[1673588603971,0.95781439,1409.0,1408.9,21.29319]
[1673588604292,0.95781439,1409.0,1408.9,6.04143134]
[1673588604501,0.95781439,1409.0,1408.8,21.36044]
[1673588604753,0.95781439,1409.0,1408.8,21.29444]
[1673588604981,1.49783979,1409.0,1408.8,21.29444]
[1673588605768,7.40833028,1409.0,1408.8,7.09798]
[1673588605980,1.517,1408.9,1408.8,0.002]
[1673588606301,1.517,1408.9,1408.6,14.19797]
[1673588606543,1.6667,1408.8,1408.6,14.19797]
[1673588606871,1.6667,1408.8,1408.6,7.09896]
[1673588608126,1.6667,1408.8,1408.6,14.1982]
[1673588610574,1.6667,1408.8,1408.6,21.29744]
[1673588612126,1.6667,1408.8,1408.6,14.1982]
[1673588615350,1.6667,1408.8,1408.6,21.29744]
[1673588616253,1.6667,1408.8,1408.6,14.1982]
[1673588616552,1.6667,1408.8,1408.6,7.09896]
[1673588619874,1.6667,1408.8,1408.6,14.1982]
[1673588620181,1.6667,1408.8,1408.6,7.09896]
[1673588620621,2.00067,1408.7,1408.6,7.09896]
[1673588620828,1.834,1408.7,1408.6,7.09896]
[1673588621275,1.834,1408.7,1408.5,21.36419]
[1673588621442,1.834,1408.7,1408.5,21.29819]
[1673588621653,0.921,1408.7,1408.5,21.29819]
[1673588622104,1.6667,1408.8,1408.5,21.29819]
[1673588624492,1.6637976,1408.8,1408.5,21.29819]
[1673588625456,1.515,1408.8,1408.5,21.29819]
[1673588629115,24.18422908,1408.9,1408.5,21.29819]
[1673588629325,27.7905618,1408.9,1408.5,21.29819]
[1673588631485,25.21365443,1408.9,1408.5,21.29819]
[1673588632743,21.60732171,1408.9,1408.5,22.36034334]
[1673588632902,21.60732171,1408.9,1408.5,26.40417529]
[1673588635161,21.60732171,1408.9,1408.5,25.34202195]
[1673588635746,21.60732171,1408.9,1408.5,4.04383195]
[1673588635957,21.60732171,1408.9,1408.5,14.19868]
[1673588636633,21.60732171,1408.9,1408.5,21.29814]
[1673588638712,22.66722908,1408.9,1408.5,22.36029334]
[1673588639752,21.60732171,1408.9,1408.5,22.36029334]
[1673588639958,21.60732171,1408.9,1408.6,3.0]
[1673588640160,21.60732171,1408.9,1408.7,21.29622]
[1673588642357,21.60732171,1408.9,1408.7,21.29228208]
[1673588642809,22.66722908,1408.9,1408.7,21.29228208]
[1673588643637,21.60732171,1408.9,1408.7,21.29228208]
[1673588644250,21.60732171,1408.9,1408.7,22.35443542]
[1673588644462,21.60732171,1408.9,1408.7,21.29228208]
[1673588644726,22.66722908,1408.9,1408.7,22.35443542]
[1673588645363,22.66722908,1408.9,1408.7,21.29228208]
[1673588645891,2.82070329,1408.8,1408.6,4.24037442]
[1673588646055,2.82070329,1408.8,1408.6,11.32944442]
[1673588646769,3.31642467,1408.8,1408.6,11.32944442]
[1673588646985,3.14183092,1408.8,1408.6,11.32944442]
[1673588648574,1.55562875,1408.8,1408.6,11.32944442]
[1673588648932,5.26137571,1408.8,1408.6,11.32944442]
[1673588649144,5.32309742,1408.8,1408.6,11.32944442]
[1673588649291,6.90929959,1408.8,1408.6,11.32944442]
[1673588652462,2.82083894,1408.7,1408.5,21.36447]
[1673588652726,1.92693049,1408.7,1408.5,21.29847]
[1673588653026,1.05990737,1408.7,1408.5,21.29847]
[1673588653232,4.66624009,1408.7,1408.5,14.19894]
[1673588653424,4.66624009,1408.7,1408.5,7.09942]
[1673588654593,3.60633272,1408.7,1408.5,8.16157334]
[1673588654764,5.02412616,1408.7,1408.5,8.16157334]
[1673588654976,5.08584787,1408.7,1408.5,8.16157334]
[1673588657016,6.14575524,1408.7,1408.5,7.09942]
[1673588657345,2.53942252,1408.7,1408.5,21.29892]
[1673588657551,10.5716017,1408.8,1408.5,21.29892]
[1673588657708,14.17793442,1408.8,1408.5,21.29892]
[1673588657920,14.17793442,1408.8,1408.5,7.09942]
[1673588658364,14.17793442,1408.8,1408.5,15.26132334]
[1673588658578,1.05990737,1408.7,1408.5,14.19917]
[1673588659494,11.06732308,1408.8,1408.5,21.29892]
[1673588659871,9.0546017,1408.8,1408.5,22.36107334]
[1673588660178,9.0516017,1408.8,1408.5,22.36307334]
[1673588660341,9.0546017,1408.8,1408.5,22.36107334]
[1673588660761,9.55032308,1408.8,1408.5,21.29892]
[1673588661183,9.55032308,1408.8,1408.5,22.36107334]
[1673588664100,7.96412091,1408.8,1408.5,22.36107334]
[1673588664314,4.25837395,1408.8,1408.5,22.36107334]
[1673588664470,1.55562875,1408.8,1408.5,22.36107334]
[1673588666992,1.55562875,1408.8,1408.5,23.95431952]
[1673588667230,1.5524743,1408.8,1408.5,23.95431952]
[1673588668403,4.89957232,1408.8,1408.5,22.36107334]
[1673588668615,3.13867647,1408.8,1408.5,22.36107334]
[1673588668789,1.5524743,1408.8,1408.5,26.50695147]
[1673588669242,1.5524743,1408.8,1408.6,2.0]
[1673588669462,1.5524743,1408.8,1408.7,14.19748]
[1673588669860,0.49572138,1408.8,1408.7,14.19748]
[1673588670714,25.62254844,1408.9,1408.7,14.19748]
[1673588670907,1.76080955,1408.8,1408.7,14.19748]
[1673588671328,1.76080955,1408.8,1408.7,12.31926248]
[1673588677217,2.82009886,1408.8,1408.7,12.31926248]
[1673588682206,22.66661102,1408.9,1408.7,19.41800248]
[1673588682421,12.71812171,1408.9,1408.7,22.49353368]
[1673588682734,13.77741102,1408.9,1408.7,23.55568702]
[1673588682889,13.77741102,1408.9,1408.7,22.49353368]
[1673588683098,13.77741102,1408.9,1408.7,23.55568702]
[1673588683365,13.77741102,1408.9,1408.7,22.49353368]
[1673588684692,13.77741102,1408.9,1408.7,23.55568702]
[1673588686289,13.77741102,1408.9,1408.7,20.48015582]
[1673588686694,13.77741102,1408.9,1408.7,20.12679482]
[1673588687354,12.71812171,1408.9,1408.7,19.06464148]
[1673588688076,13.77741102,1408.9,1408.7,19.06464148]
[1673588692490,12.71812171,1408.9,1408.7,19.06464148]
[1673588695175,13.77741102,1408.9,1408.7,19.06464148]
[1673588700502,12.71812171,1408.9,1408.7,19.06464148]
[1673588700839,12.71812171,1408.9,1408.7,20.12679482]
[1673588701225,12.71812171,1408.9,1408.7,19.06464148]
[1673588701226,13.77741102,1408.9,1408.7,19.06464148]
[1673588701894,12.71812171,1408.9,1408.7,20.12679482]
[1673588708364,13.77741102,1408.9,1408.7,20.12679482]
[1673588709150,13.77741102,1408.9,1408.7,19.06464148]
[1673588710097,13.77741102,1408.9,1408.8,0.05]
[1673588710253,17.07812667,1408.9,1408.7,19.06464148]
[1673588710464,13.77741102,1408.9,1408.7,19.06464148]
[1673588714189,13.77741102,1408.9,1408.7,20.12679482]
[1673588714513,13.77741102,1408.9,1408.7,19.06464148]
[1673588714931,13.77741102,1408.9,1408.7,20.12679482]
[1673588715105,13.77741102,1408.9,1408.7,19.06464148]
[1673588715671,13.77741102,1408.9,1408.7,20.12679482]
[1673588722474,15.36361319,1408.9,1408.7,20.12679482]
[1673588722660,13.77741102,1408.9,1408.7,20.12679482]
[1673588724705,13.77741102,1408.9,1408.7,21.720041]
[1673588727095,13.77741102,1408.9,1408.8,1.06215334]
[1673588727313,15.53798751,1408.9,1408.8,22.35684334]
[1673588728135,15.53798751,1408.9,1408.8,21.29469]
[1673588728686,15.53798751,1408.9,1408.8,23.95008952]
[1673588728687,0.06172171,1408.9,1408.8,23.95008952]
[1673588728866,1.0961037,1409.0,1408.8,27.42502009]
[1673588729722,1.0961037,1409.0,1408.8,28.93402009]
[1673588730284,0.03681439,1409.0,1408.8,28.93402009]
[1673588730593,1.0961037,1409.0,1408.8,28.93402009]
[1673588731023,0.03681439,1409.0,1408.8,28.93402009]
[1673588732365,0.03681439,1409.0,1408.8,27.34077391]
[1673588732791,0.03681439,1409.0,1408.8,28.93402009]
[1673588732997,0.03681439,1409.0,1408.9,23.29319]
[1673588734996,0.03472557,1409.0,1408.9,23.29319]
[1673588740434,0.03472557,1409.0,1408.9,21.29319]
[1673588744953,0.03472557,1409.0,1408.9,22.35534334]
[1673588745199,0.03472557,1409.0,1408.9,28.56844685]
[1673588745527,0.03472557,1409.0,1408.9,31.56844685]
[1673588746317,0.03472557,1409.0,1408.9,29.97520067]
[1673588750156,0.03472557,1409.0,1408.9,31.56844685]
[1673588750462,0.03472557,1409.0,1408.9,29.97520067]
[1673588752145,0.03472557,1409.0,1408.9,31.56844685]
[1673588752524,0.03472557,1409.0,1408.9,29.97520067]
[1673588753610,0.03472557,1409.0,1408.9,31.56844685]
[1673588753989,0.03472557,1409.0,1408.9,29.97520067]
[1673588755504,0.03129961,1409.0,1408.9,29.97520067]
[1673588755738,0.03129961,1409.0,1408.9,31.56844685]
[1673588756147,0.03129961,1409.0,1408.9,29.97520067]
[1673588760666,0.03129961,1409.0,1408.9,31.56844685]
[1673588762448,0.03129961,1409.0,1408.9,30.50629351]
[1673588763643,0.03129961,1409.0,1408.9,31.56795901]
[1673588763807,0.46319908,1409.0,1408.9,31.56795901]
[1673588764268,0.46319908,1409.0,1408.9,30.50629351]
[1673588765516,0.46319908,1409.0,1408.9,31.56807091]
[1673588766476,0.46319908,1409.0,1408.9,30.50629351]
[1673588766786,0.46319908,1409.0,1408.9,31.56821504]
[1673588766949,0.46319908,1409.0,1408.9,30.50629351]
[1673588769092,0.46319908,1409.0,1408.9,30.50424308]
[1673588769676,0.46319908,1409.0,1408.9,32.02124308]
[1673588770356,0.46319908,1409.0,1408.9,34.14587922]
[1673588770530,0.46319908,1409.0,1408.9,32.02124308]
[1673588770762,0.46319908,1409.0,1408.9,34.14587922]
[1673588771466,0.46319908,1409.0,1408.9,32.02124308]
[1673588772197,0.46319908,1409.0,1408.9,34.14587922]
[1673588774461,0.46319908,1409.0,1408.9,32.55263304]
[1673588776404,2.50119908,1409.0,1408.9,9.75133474]
[1673588776616,2.50119908,1409.0,1408.9,7.09567957]
[1673588778291,2.50119908,1409.0,1408.9,14.19340957]
[1673588779392,1.48719908,1409.0,1408.9,14.19340957]
[1673588780130,1.48719908,1409.0,1408.9,6.03939856]
[1673588780305,2.9506426,1409.0,1408.9,6.03939856]
[1673588781995,2.9506426,1409.0,1408.9,6.04139856]
[1673588782331,2.9408536,1409.0,1408.9,6.03939856]
[1673588785756,2.9408536,1409.0,1408.8,21.35978]
[1673588785983,2.9408536,1409.0,1408.8,21.29378]
[1673588786326,2.33208536,1408.9,1408.8,21.29378]
[1673588788228,2.33208536,1408.9,1408.8,14.1958]
[1673588791162,2.33208536,1408.9,1408.8,7.09789]
[1673588791901,5.93841808,1408.9,1408.7,14.26316]
[1673588792069,7.45741808,1408.9,1408.7,0.014]
[1673588792284,7.45741808,1408.9,1408.6,21.29664]
[1673588792285,0.74574181,1408.8,1408.6,21.29664]
[1673588793839,2.26274181,1408.8,1408.6,21.29664]
[1673588804823,2.25877848,1408.8,1408.6,21.29664]
[1673588805156,1.517,1408.8,1408.6,21.29664]
[1673588815712,33.15629697,1408.9,1408.6,21.29664]
[1673588816965,28.9288291,1408.9,1408.6,21.29664]
[1673588818237,28.9288291,1408.9,1408.6,22.35891901]
[1673588818687,27.86953979,1408.9,1408.6,22.35891901]
[1673588818925,22.45212171,1408.9,1408.6,22.35891901]
[1673588819435,22.45212171,1408.9,1408.6,23.95229517]
[1673588819643,22.45212171,1408.9,1408.6,22.35891901]
[1673588820518,22.45212171,1408.9,1408.6,23.95229517]
[1673588820926,22.45212171,1408.9,1408.6,22.35891901]
[1673588821129,25.00722404,1408.9,1408.6,22.35891901]
[1673588821360,25.00722404,1408.9,1408.6,23.95229517]
[1673588821707,22.45212171,1408.9,1408.6,23.95229517]
[1673588822029,22.45212171,1408.9,1408.7,1.06227901]
[1673588822030,13.22782171,1408.9,1408.7,1.06227901]
[1673588822182,13.22782171,1408.9,1408.8,21.29469]
[1673588826806,13.22791267,1408.9,1408.8,21.29469]
[1673588830846,13.22791267,1408.9,1408.8,21.29218964]
[1673588849306,14.86059409,1408.9,1408.8,21.29218964]
[1673588851195,15.9198834,1408.9,1408.8,21.29218964]
[1673588852575,14.28720198,1408.9,1408.8,21.29218964]
[1673588853519,13.22791267,1408.9,1408.8,21.29218964]
[1673588855347,16.04783297,1408.9,1408.8,21.29218964]
[1673588858875,14.28471609,1408.9,1408.8,22.35446865]
[1673588859117,13.22542678,1408.9,1408.8,22.35446865]
[1673588862829,13.22542678,1408.9,1408.8,22.40446865]
[1673588863343,0.05932678,1408.9,1408.8,23.99784481]
[1673588863535,1.51269939,1409.0,1408.8,27.32651791]
[1673588864785,1.51269939,1409.0,1408.8,27.27651791]
[1673588865199,1.51269939,1409.0,1408.8,25.68314175]
[1673588865408,1.51269939,1409.0,1408.8,27.27651791]
[1673588865629,1.51269939,1409.0,1408.8,25.68314175]
[1673588872969,0.45341008,1409.0,1408.8,25.68314175]
[1673588877619,3.27322622,1409.0,1408.8,25.68314175]
[1673588877824,1.51269939,1409.0,1408.8,25.68314175]
[1673588878039,0.45341008,1409.0,1408.8,25.68314175]
[1673588883538,0.45341008,1409.0,1408.8,25.73314175]
[1673588884178,0.44950992,1409.0,1408.8,27.32651791]
[1673588884485,0.44950992,1409.0,1408.9,21.29319]
[1673588886128,0.44950992,1409.0,1408.9,24.50595589]
[1673588890561,0.44950992,1409.0,1408.9,21.29319]
[1673588891270,0.44950992,1409.0,1408.9,20.23688935]
[1673588891413,1.50879923,1409.0,1408.9,20.23688935]
[1673588891627,4.85552053,1409.0,1408.9,4.16344875]
[1673588892352,3.79623122,1409.0,1408.9,4.16344875]
[1673588892561,5.24899038,1409.0,1408.9,4.16344875]
[1673588892821,5.30531716,1409.0,1408.9,4.16544875]
[1673588892993,5.30831716,1409.0,1408.9,4.16344875]
[1673588893402,6.36879256,1409.0,1408.9,4.16344875]
[1673588893612,4.78259039,1409.0,1408.9,4.16344875]
[1673588893857,6.30946578,1409.0,1408.9,4.16344875]
[1673588894187,6.36879256,1409.0,1408.9,4.16344875]
[1673588898925,5.30831716,1409.0,1408.9,4.16344875]
[1673588902754,6.36875608,1409.0,1408.9,4.16344875]
[1673588905937,6.36875608,1409.0,1408.9,11.26117875]
[1673588906176,4.91599692,1409.0,1408.9,11.26117875]
[1673588906502,4.85667014,1409.0,1408.9,11.26117875]
[1673588906854,4.85667014,1409.0,1408.9,4.16344875]
[1673588907064,3.27046797,1409.0,1408.9,4.16344875]
[1673588907321,4.85667014,1409.0,1408.9,11.26117875]
[1673588907532,3.27046797,1409.0,1408.9,11.26117875]
[1673588907701,4.85667014,1409.0,1408.9,11.26117875]
[1673588908448,5.71384489,1409.0,1408.9,11.26117875]
[1673588908796,5.77317167,1409.0,1408.9,11.26117875]
[1673588911708,5.77317167,1409.0,1408.9,9.38317714]
[1673588913893,4.1869695,1409.0,1408.9,9.38317714]
[1673588914107,0.44950992,1409.0,1408.9,9.38317714]
[1673588917727,1.47350992,1409.0,1408.9,9.38317714]
[1673588918050,4.29451567,1409.0,1408.9,9.38317714]
[1673588922665,3.27051567,1409.0,1408.9,9.38317714]
[1673588922880,3.27051276,1409.0,1408.9,9.38317714]
[1673588923197,1.50994884,1409.0,1408.9,9.38317714]
[1673588928132,3.27047123,1409.0,1408.9,9.38317714]
[1673588930775,1.50994884,1409.0,1408.9,9.38317714]
[1673588932143,0.44738679,1409.0,1408.9,19.54318615]
[1673588932323,0.44738679,1409.0,1408.9,22.37322238]
[1673588933697,0.44738679,1409.0,1408.9,22.32322238]
[1673588935353,0.44738679,1409.0,1408.9,21.26094337]
[1673588936018,0.44738679,1409.0,1408.9,23.84022238]
[1673588937107,0.44738679,1409.0,1408.9,20.77794337]
[1673588939184,0.44738679,1409.0,1408.9,20.7740947]
[1673588941004,0.44738679,1409.0,1408.9,20.8240947]
[1673588941164,0.44738679,1409.0,1408.9,20.7740947]
[1673588941377,0.44738679,1409.0,1408.9,21.83637371]
[1673588943583,0.44738679,1409.0,1408.9,20.7740947]
[1673588944213,0.44738679,1409.0,1408.9,21.83637371]
[1673588944423,0.44738679,1409.0,1408.9,20.7740947]
[1673588945274,0.44738679,1409.0,1408.9,21.83637371]
[1673588953085,0.44738679,1409.0,1408.9,23.42974987]
[1673588953724,0.44738679,1409.0,1408.9,27.492107]
[1673588953892,0.44738679,1409.0,1408.9,25.36747086]
[1673588955264,0.44738679,1409.0,1408.9,26.43024876]
[1673588955780,0.44738679,1409.0,1408.9,25.36747086]
[1673588956518,0.44738679,1409.0,1408.9,26.43022137]
[1673588959369,0.44738679,1409.0,1408.9,24.83684521]
[1673588960303,0.44738679,1409.0,1408.9,22.00680898]
[1673588960725,0.4442039,1409.0,1408.9,22.00680898]
[1673588961775,0.4442039,1409.0,1408.9,19.42705847]
[1673588962448,0.4442039,1409.0,1408.9,16.42705847]
[1673588963297,0.4442039,1409.0,1408.9,17.48980898]
[1673588967657,0.4442039,1409.0,1408.9,10.39207898]
[1673588968076,0.4442039,1409.0,1408.9,17.48980898]
[1673588969279,0.4442039,1409.0,1408.9,16.42705847]
[1673588970967,1.50464282,1409.0,1408.9,16.42705847]
[1673588971130,0.4442039,1409.0,1408.9,16.42705847]
[1673588971339,1.50464282,1409.0,1408.9,16.42705847]
[1673588971753,0.2942039,1409.0,1408.9,16.42705847]
[1673588972848,0.36997283,1409.0,1408.9,16.42705847]
[1673588976176,1.82485812,1409.0,1408.9,16.42705847]
[1673588976388,1.82485812,1409.0,1408.9,9.32932847]
[1673588976596,6.15684832,1409.0,1408.8,21.35962]
[1673588976824,4.45562382,1409.0,1408.8,7.09777]
[1673588977039,0.61568483,1408.9,1408.8,7.09777]
[1673588977739,3.43682754,1408.9,1408.8,14.196]
[1673588977987,0.61568483,1408.9,1408.8,14.196]
[1673588978176,3.43681881,1408.9,1408.8,14.196]
[1673588978492,1.67612375,1408.9,1408.8,14.196]
[1673588979207,0.61568483,1408.9,1408.8,14.196]
[1673588980695,0.61568483,1408.9,1408.8,14.198]
[1673588980919,0.61568483,1408.9,1408.8,14.196]
[1673588982788,0.61568483,1408.9,1408.8,21.29423]
[1673588982999,4.37985489,1409.0,1408.8,21.29423]
[1673588983260,4.32052811,1409.0,1408.8,21.29423]